bitfinex/quotes_SOLUSD_20251202
["timestamp","ask_amount","ask_price","bid_price","bid_amount"]
[1764685941049,5.39003774,132.02,131.98,7.57654758]
[1764685941552,5.39003774,131.99,131.89,7.58207597]
[1764685941737,5.39003774,131.94,131.89,7.58207597]
[1764685941936,8.56,131.98,131.89,7.58207597]
[1764685942248,8.56,131.98,131.9,21.69890174]
[1764685942422,64.37953697,132.03,131.92,8.80994492]
[1764685942624,5.39003774,132.0,131.95,16.308864]
[1764685942834,5.39003774,131.99,131.95,16.308864]
[1764685943042,5.39003774,132.0,131.95,16.308864]
[1764685943250,12.96597897,132.0,131.95,23.88705929]
[1764685943438,16.13472533,132.02,131.96,5.39003774]
[1764685943644,8.56,132.02,131.97,5.39003774]
[1764685944150,12.9642107,132.03,131.97,13.95003774]
[1764685944347,16.53565669,132.03,131.97,17.52148373]
[1764685944522,16.53511504,132.04,131.98,16.53838932]
[1764685944929,16.53511504,132.04,131.98,35.48065329]
[1764685945131,8.96148373,132.03,131.98,26.51916956]
[1764685945545,8.96148373,132.02,131.98,7.57690559]
[1764685945741,8.96148373,132.03,131.98,7.57690559]
[1764685946059,8.96148373,132.02,131.98,7.57690559]
[1764685946236,8.96148373,131.99,131.94,18.94743091]
[1764685946545,8.96148373,131.95,131.91,7.58092638]
[1764685946750,7.57842932,131.96,131.89,16.14198222]
[1764685947053,8.96148373,131.91,131.86,8.56]
[1764685947237,8.96148373,131.93,131.89,16.308864]
[1764685947562,8.58,132.04,131.93,16.308864]
[1764685947736,8.96148373,132.01,131.93,24.888864]
[1764685947929,8.96148373,132.0,131.94,8.96148373]
[1764685948133,8.96148373,131.98,131.93,24.888864]
[1764685948343,8.96148373,131.97,131.91,25.27034773]
[1764685948548,16.53953768,131.96,131.92,7.58035172]
[1764685948734,7.57805395,131.96,131.92,7.58035172]
[1764685948938,16.53953768,131.96,131.92,7.58035172]
[1764685949463,8.96148373,131.99,131.93,8.96148373]
[1764685949754,17.54148373,132.0,131.94,8.96148373]
[1764685949954,17.54148373,132.0,131.92,35.11123104]
[1764685950150,17.54148373,132.0,131.94,8.96148373]
[1764685950749,17.54148373,132.0,131.95,7.57862826]
[1764685950750,8.96148373,131.99,131.95,7.57862826]
[1764685950967,25.11766787,132.0,131.95,7.57862826]
[1764685951166,8.58,132.0,131.95,16.54011199]
[1764685951374,8.96148373,132.02,131.96,8.96148373]
[1764685951668,8.58,132.04,131.98,8.96148373]
[1764685951878,8.58,132.04,131.99,8.96148373]
[1764685952040,8.58,132.04,131.98,16.308864]
[1764685952041,8.96148373,132.03,131.98,16.308864]
[1764685952871,16.53609363,132.02,131.98,16.308864]
[1764685953046,8.96148373,132.02,131.98,16.308864]
[1764685953242,8.96148373,132.01,131.98,16.308864]
[1764685953564,8.96148373,132.01,131.96,7.57789064]
[1764685954056,26.50933954,132.03,131.95,41.42875707]
[1764685954360,8.96148373,132.01,131.95,32.46727334]
[1764685954666,8.96148373,131.96,131.9,7.58150113]
[1764685954853,16.53954212,131.96,131.9,27.91384138]
[1764685955056,8.96148373,131.96,131.93,16.308864]
[1764685955263,8.96148373,131.97,131.93,16.308864]
[1764685955467,8.96148373,131.95,131.89,7.58207597]
[1764685955766,7.57770114,131.97,131.9,16.308864]
[1764685955983,8.96148373,131.94,131.9,16.308864]
[1764685956162,8.96148373,131.95,131.9,16.308864]
[1764685956583,8.96148373,131.95,131.89,26.5372659]
[1764685956584,8.96148373,131.92,131.87,7.58306965]
[1764685956872,8.96148373,131.94,131.87,26.54113441]
[1764685957085,8.96148373,131.92,131.87,23.89193365]
[1764685957249,8.58,131.98,131.86,17.54148373]
[1764685957250,8.96148373,131.9,131.86,7.58359028]
[1764685957765,8.96148373,131.9,131.86,26.54309278]
[1764685957970,8.96148373,131.92,131.86,42.85195678]
[1764685958150,8.96148373,131.95,131.89,25.27034773]
[1764685958471,8.96148373,131.96,131.9,8.96148373]
[1764685958855,8.96148373,131.96,131.91,7.58092638]
[1764685959059,8.96148373,131.95,131.9,7.58126304]
[1764685959769,7.57690559,131.98,131.9,7.58126304]
[1764685959971,8.96148373,131.95,131.89,16.308864]
[1764685960175,8.96148373,131.93,131.87,8.58]
[1764685960357,8.96148373,131.93,131.9,16.308864]
[1764685960557,8.96148373,131.93,131.87,8.58]
[1764685960767,8.96148373,131.93,131.88,16.308864]
[1764685960959,8.96148373,131.93,131.89,7.58207597]
[1764685961370,8.96148373,131.94,131.89,7.58207597]
[1764685962653,8.96148373,131.93,131.89,7.58207597]
[1764685963059,8.96148373,131.91,131.87,16.16299062]
[1764685963368,8.96148373,131.89,131.87,7.58299062]
[1764685963571,8.96148373,131.88,131.86,7.58365975]
[1764685963771,8.96148373,131.88,131.81,8.58]
[1764685963772,8.96148373,131.87,131.8,7.58725341]
[1764685963954,8.96148373,131.81,131.77,7.58898079]
[1764685964154,8.58,131.86,131.77,7.58898079]
[1764685964356,8.96148373,131.81,131.77,26.56143278]
[1764685964751,8.96148373,131.8,131.77,26.56143278]
[1764685964953,8.96148373,131.79,131.77,7.58898079]
[1764685965274,8.58,131.82,131.76,0.2]
[1764685965275,8.96148373,131.78,131.76,0.2]
[1764685965472,8.96148373,131.77,131.76,0.2]
[1764685966175,26.35142865,131.77,131.76,0.2]
[1764685966376,33.94040944,131.77,131.76,0.2]
[1764685966879,25.13046452,131.77,131.76,0.2]
[1764685968063,33.94040944,131.77,131.76,0.2]
[1764685968459,33.94040944,131.77,131.68,7.5937819]
[1764685968460,61.87434516,131.77,131.68,7.5937819]
[1764685968660,8.96148373,131.73,131.68,7.5937819]
[1764685968859,17.54148373,131.73,131.68,7.5937819]
[1764685969374,35.3713777,131.77,131.68,7.5937819]
[1764685969581,16.55276893,131.73,131.68,7.5937819]
[1764685970173,16.55276893,131.73,131.65,27.95064979]
[1764685970377,16.55276893,131.73,131.68,16.308864]
[1764685971086,16.55276893,131.73,131.68,23.90296692]
[1764685971462,16.55276893,131.73,131.68,16.308864]
[1764685971787,25.11880892,131.72,131.6,16.56026792]
[1764685971963,8.96148373,131.64,131.6,7.59878419]
[1764685972676,8.96148373,131.63,131.58,16.17981448]
[1764685972858,8.96148373,131.62,131.58,16.17981448]
[1764685973061,8.96148373,131.63,131.58,23.90867848]
[1764685973267,8.96148373,131.64,131.58,23.90867848]
[1764685973456,8.96148373,131.65,131.58,7.59981448]
[1764685973656,8.96148373,131.64,131.59,16.308864]
[1764685974677,8.96148373,131.63,131.59,16.308864]
[1764685974885,8.96148373,131.66,131.59,25.27034773]
[1764685975081,8.96148373,131.66,131.61,16.308864]
[1764685975286,8.96148373,131.65,131.61,16.308864]
[1764685975487,8.96148373,131.64,131.61,16.308864]
[1764685975890,16.55799904,131.64,131.61,16.308864]
[1764685976267,8.96148373,131.63,131.59,16.308864]
[1764685976682,8.96148373,131.63,131.58,16.17982871]
[1764685976987,8.96148373,131.63,131.59,16.308864]
[1764685977557,16.55802955,131.64,131.59,16.308864]
[1764685977990,8.96148373,131.64,131.61,16.308864]
[1764685978285,17.54148373,131.65,131.61,16.308864]
[1764685978508,8.96148373,131.65,131.61,16.308864]
[1764685978984,16.17548465,131.66,131.61,16.308864]
[1764685978985,8.96148373,131.64,131.61,16.308864]
[1764685979287,8.96148373,131.64,131.61,16.988864]
[1764685979471,16.55831553,131.64,131.61,0.68]
[1764685979672,8.96148373,131.63,131.59,24.58802876]
[1764685979883,7.5968318,131.64,131.6,0.68]
[1764685980089,8.96148373,131.64,131.6,0.68]
[1764685980475,8.96148373,131.63,131.6,0.68]
[1764685980671,7.59609387,131.65,131.6,0.68]
[1764685980881,60.72423071,131.78,131.62,16.308864]
[1764685980882,7.593591,131.69,131.62,16.308864]
[1764685981088,8.96148373,131.68,131.6,0.68]
[1764685981391,7.5949569,131.67,131.63,16.308864]
[1764685981694,8.96148373,131.67,131.64,0.68]
[1764685981889,8.96148373,131.66,131.63,0.68]
[1764685982096,8.96148373,131.67,131.63,0.68]
[1764685982387,17.54148373,131.68,131.64,0.68]
[1764685982693,8.96148373,131.67,131.64,0.68]
[1764685982895,8.96148373,131.67,131.62,43.58016161]
[1764685983078,8.96148373,131.67,131.63,0.68]
[1764685983278,8.96148373,131.67,131.63,8.27648597]
[1764685983472,16.55652311,131.67,131.63,8.27648597]
[1764685983806,7.59503938,131.67,131.63,8.27648597]
[1764685984109,8.96148373,131.66,131.63,7.59648597]
[1764685984266,8.96148373,131.66,131.63,8.27648597]
[1764685984469,16.55652311,131.67,131.63,8.27648597]
[1764685984669,7.59503938,131.67,131.64,0.68]
[1764685984970,7.59503938,131.67,131.64,8.27646586]
[1764685985173,7.59365911,131.69,131.65,0.68]
[1764685985395,8.96148373,131.69,131.65,0.68]
[1764685985572,8.96148373,131.68,131.64,7.59646586]
[1764685985766,8.96148373,131.68,131.64,8.27646586]
[1764685985963,8.96148373,131.68,131.64,7.59646586]
[1764685986496,8.96148373,131.67,131.64,8.27646586]
[1764685986873,16.55559374,131.69,131.65,0.68]
[1764685987189,8.96148373,131.7,131.65,16.988864]
[1764685987371,8.96148373,131.69,131.65,16.988864]
[1764685987567,8.96148373,131.66,131.63,7.59695065]
[1764685987771,8.96148373,131.66,131.64,16.308864]
[1764685988081,8.96148373,131.66,131.63,7.59695065]
[1764685988283,8.96148373,131.64,131.6,0.68]
[1764685988588,16.55872935,131.63,131.59,7.59923617]
[1764685988790,8.96148373,131.6,131.55,0.68]
[1764685988996,0.66,131.62,131.55,0.68]
[1764685989289,8.96148373,131.6,131.55,0.68]
[1764685989493,8.96148373,131.6,131.57,16.308864]
[1764685989674,35.16987647,131.63,131.57,23.9092486]
[1764685989878,8.96148373,131.61,131.57,8.2803846]
[1764685990085,8.96148373,131.6,131.57,0.68]
[1764685990292,8.96148373,131.61,131.57,7.60026177]
[1764685990478,7.5967234,131.64,131.59,16.308864]
[1764685990479,8.58,131.64,131.59,16.308864]
[1764685990683,17.54148373,131.64,131.59,16.308864]
[1764685990865,17.54148373,131.64,131.6,0.68]
[1764685991069,8.96148373,131.63,131.59,16.988864]
[1764685991271,8.96148373,131.6,131.57,23.90912577]
[1764685991470,8.58,131.62,131.57,16.988864]
[1764685991471,8.96148373,131.61,131.57,16.988864]
[1764685991892,8.96148373,131.63,131.58,0.65]
[1764685992074,17.54148373,131.63,131.58,0.65]
[1764685992689,8.96148373,131.61,131.57,23.90885822]
[1764685992875,8.96148373,131.61,131.57,7.59999422]
[1764685993070,8.96148373,131.61,131.57,8.24999422]
[1764685993300,8.96148373,131.6,131.57,8.24999422]
[1764685993798,8.96148373,131.6,131.57,8.25036308]
[1764685994403,17.54148373,131.6,131.57,16.308864]
[1764685994573,8.96148373,131.59,131.56,16.308864]
[1764685994776,8.96148373,131.57,131.53,7.80246228]
[1764685995183,8.96148373,131.56,131.53,0.2]
[1764685995379,8.96148373,131.54,131.53,0.2]
[1764685996385,16.56373399,131.54,131.53,0.2]
[1764685996790,17.28373399,131.54,131.53,0.2]
[1764685996991,17.028864,131.61,131.53,8.45282825]
[1764685997192,8.80994492,131.59,131.53,7.80277483]
[1764685997502,8.96148373,131.54,131.53,16.508864]
[1764685997685,8.96148373,131.54,131.53,0.2]
[1764685998291,17.28373399,131.54,131.53,0.2]
[1764685998496,9.68148373,131.54,131.53,0.2]
[1764685998789,8.58,131.54,131.53,0.2]
[1764685998983,8.96148373,131.55,131.53,0.2]
[1764685999310,8.58,131.55,131.53,8.45281035]
[1764685999512,8.58,131.55,131.53,0.85]
[1764685999881,8.58,131.55,131.53,8.45270177]
[1764686000095,8.58,131.55,131.53,0.2]
[1764686000422,17.54148373,131.55,131.53,7.80278363]
[1764686000705,7.60071662,131.57,131.53,7.80278363]
[1764686000879,8.96148373,131.54,131.53,7.80278363]
[1764686001203,8.96148373,131.54,131.53,0.2]
[1764686002104,16.56373399,131.54,131.53,0.2]
[1764686003384,8.96148373,131.54,131.53,0.2]
[1764686003790,17.54148373,131.54,131.53,0.2]
[1764686004487,13.98170466,131.54,131.53,0.2]
[1764686006193,18.99864357,131.59,131.53,0.85]
[1764686006403,5.40170466,131.56,131.53,0.85]
[1764686006586,5.40170466,131.54,131.53,0.2]
[1764686007275,13.98170466,131.55,131.53,7.80257139]
[1764686007608,26.59800522,131.59,131.54,0.65]
[1764686007609,8.58,131.56,131.54,0.65]
[1764686007905,5.40170466,131.55,131.53,7.80257139]
[1764686008086,5.40170466,131.54,131.53,7.80257139]
[1764686008526,5.40170466,131.54,131.53,0.2]
[1764686008695,13.00395492,131.54,131.53,0.2]
[1764686010104,5.40170466,131.54,131.53,0.2]
[1764686010487,13.00395492,131.54,131.53,0.2]
[1764686010912,22.53389984,131.54,131.53,0.2]
[1764686012914,13.72395492,131.54,131.53,0.2]
[1764686013907,22.28395492,131.54,131.53,0.2]
[1764686014312,13.72395492,131.54,131.53,0.2]
[1764686014499,22.28395492,131.54,131.53,0.2]
[1764686014699,5.40170466,131.54,131.53,0.2]
[1764686015018,13.96170466,131.55,131.53,0.2]
[1764686015213,5.40170466,131.54,131.53,0.2]
[1764686016046,13.96170466,131.55,131.53,7.80282825]
[1764686016313,5.40170466,131.57,131.53,8.52282825]
[1764686016516,5.40170466,131.62,131.59,7.59936165]
[1764686016689,5.40170466,131.61,131.58,23.90865691]
[1764686016891,5.40170466,131.62,131.59,0.72]
[1764686017102,8.56,131.63,131.59,0.72]
[1764686017320,5.40170466,131.62,131.59,0.72]
[1764686017493,5.40170466,131.6,131.57,23.90928468]
[1764686017700,5.40170466,131.59,131.57,24.62928468]
[1764686017898,13.96170466,131.6,131.57,24.62928468]
[1764686018317,13.96170466,131.6,131.58,0.72]
[1764686018501,8.56,131.6,131.59,23.90822565]
[1764686018817,0.68,131.66,131.59,23.90822565]
[1764686018818,8.27532583,131.66,131.59,42.90662978]
[1764686019032,5.40170466,131.64,131.6,0.72]
[1764686019201,8.56,131.65,131.6,0.72]
[1764686019202,5.40170466,131.62,131.6,0.72]
[1764686020941,7.59665896,131.64,131.6,8.31853872]
[1764686021234,12.99836362,131.64,131.6,8.31853872]
[1764686021436,16.15596509,131.65,131.61,0.72]
[1764686021609,21.55766975,131.65,131.61,0.72]
[1764686021818,16.15596509,131.65,131.61,0.72]
[1764686022019,21.55766975,131.65,131.61,0.72]
[1764686022217,13.96170466,131.65,131.61,0.72]
[1764686022616,5.40170466,131.64,131.61,0.72]
[1764686022833,13.96170466,131.65,131.62,7.59762953]
[1764686023332,13.96170466,131.65,131.62,8.29762953]
[1764686023558,13.96170466,131.65,131.63,0.7]
[1764686024926,13.96170466,131.65,131.63,8.29674919]
[1764686025125,5.40170466,131.66,131.63,8.29674919]
[1764686025342,5.40170466,131.64,131.61,16.308864]
[1764686025514,5.40170466,131.64,131.61,17.008864]
[1764686026345,5.40170466,131.64,131.61,24.60684817]
[1764686026546,5.40170466,131.64,131.62,0.7]
[1764686026841,7.59594076,131.65,131.62,0.7]
[1764686027532,12.99764542,131.65,131.62,0.7]
[1764686027732,5.40170466,131.64,131.61,23.90684817]
[1764686028041,5.40170466,131.64,131.61,24.60684817]
[1764686028716,13.94170466,131.63,131.61,16.308864]
[1764686028921,5.40170466,131.62,131.61,16.308864]
[1764686029138,5.40170466,131.62,131.59,26.59680027]
[1764686029444,5.40170466,131.62,131.59,27.29680027]
[1764686030021,5.40170466,131.62,131.59,26.59680027]
[1764686030221,5.40170466,131.62,131.59,7.59888046]
[1764686030417,5.40170466,131.61,131.59,16.308864]
[1764686030739,5.40170466,131.6,131.57,24.60918882]
[1764686030918,13.94170466,131.6,131.57,8.30032482]
[1764686031237,5.40170466,131.59,131.55,8.30146631]
[1764686031414,5.40170466,131.59,131.53,0.2]
[1764686031415,5.40170466,131.58,131.53,0.2]
[1764686031622,5.40170466,131.56,131.53,8.50280192]
[1764686031820,8.54,131.59,131.56,16.308864]
[1764686032025,5.40170466,131.6,131.56,23.90955203]
[1764686032222,0.66,131.63,131.57,0.7]
[1764686032549,5.40170466,131.61,131.57,0.7]
[1764686033037,5.40170466,131.62,131.57,0.7]
[1764686033417,5.40170466,131.62,131.58,7.5999392]
[1764686033946,8.25764262,131.62,131.57,0.7]
[1764686034128,5.40170466,131.59,131.55,24.61053636]
[1764686034528,5.40170466,131.59,131.56,0.7]
[1764686035250,13.94170466,131.6,131.57,16.308864]
[1764686035444,5.40170466,131.59,131.57,16.308864]
[1764686035921,21.54058052,131.6,131.57,16.308864]
[1764686036123,8.54,131.6,131.58,0.7]
[1764686036539,8.54,131.6,131.56,26.60325896]
[1764686036744,8.54,131.6,131.57,0.7]
[1764686037153,8.54,131.6,131.58,7.5999392]
[1764686037451,21.54050323,131.6,131.57,17.008864]
[1764686037630,5.40170466,131.59,131.57,16.308864]
[1764686038253,6.06170466,131.58,131.53,0.9]
[1764686038422,8.54,131.57,131.54,0.7]
[1764686038626,5.40170466,131.56,131.55,16.308864]
[1764686038841,5.40170466,131.56,131.53,24.11158464]
[1764686039052,13.94170466,131.57,131.53,8.50272064]
[1764686039239,21.54253998,131.57,131.53,8.50272064]
[1764686039440,5.40170466,131.56,131.53,0.9]
[1764686039645,21.54253998,131.57,131.53,8.50275041]
[1764686039844,8.54,131.57,131.53,0.2]
[1764686040038,8.54,131.58,131.54,6.10170466]
[1764686040238,8.54,131.58,131.54,22.41056866]
[1764686040423,8.54,131.58,131.55,0.7]
[1764686040623,5.40170466,131.6,131.55,0.7]
[1764686040944,5.40170466,131.6,131.53,0.2]
[1764686040945,5.40170466,131.56,131.53,0.2]
[1764686041252,13.94170466,131.55,131.53,0.2]
[1764686041550,13.00395492,131.54,131.53,0.2]
[1764686041957,22.47389984,131.54,131.5,0.2]
[1764686042131,5.40170466,131.51,131.5,0.2]
[1764686042454,13.94170466,131.51,131.5,0.2]
[1764686042657,23.37164958,131.51,131.5,0.2]
[1764686042846,39.68051358,131.51,131.5,0.2]
[1764686043229,31.14051358,131.51,131.5,0.2]
[1764686043452,47.28449806,131.51,131.5,0.2]
[1764686043830,21.54568914,131.51,131.5,0.2]
[1764686044531,5.40170466,131.51,131.5,0.2]
[1764686044737,7.60353115,131.52,131.5,0.9]
[1764686045251,5.40170466,131.56,131.51,0.7]
[1764686045447,7.60051683,131.57,131.52,5.40170466]
[1764686045757,8.54,131.56,131.54,16.308864]
[1764686045936,5.40170466,131.55,131.52,0.7]
[1764686046260,13.94170466,131.56,131.52,0.7]
[1764686046758,5.40170466,131.55,131.52,0.7]
[1764686046956,5.40170466,131.54,131.51,23.91247242]
[1764686047163,5.40170466,131.54,131.51,24.61247242]
[1764686047361,7.60217824,131.55,131.52,0.7]
[1764686047966,7.60217824,131.55,131.51,23.91247242]
[1764686047967,5.40170466,131.54,131.51,16.308864]
[1764686048271,5.40170466,131.53,131.5,0.9]
[1764686048442,5.40170466,131.53,131.5,8.50399521]
[1764686048774,5.40170466,131.53,131.5,0.2]
[1764686049068,5.40170466,131.53,131.51,0.7]
[1764686049235,5.40170466,131.54,131.51,0.7]
[1764686049574,13.00430571,131.54,131.5,0.2]
[1764686049743,13.00430571,131.54,131.5,0.9]
[1764686049950,13.00430571,131.54,131.5,8.50402632]
[1764686050167,5.40170466,131.54,131.5,7.80431156]
[1764686050363,5.40170466,131.56,131.51,0.7]
[1764686050562,8.54,131.55,131.51,17.008864]
[1764686050762,8.54,131.55,131.52,0.7]
[1764686051063,5.40170466,131.56,131.53,16.308864]
[1764686051064,8.54,131.56,131.53,16.308864]
[1764686051572,8.54,131.56,131.54,0.7]
[1764686051945,16.14111007,131.56,131.54,0.7]
[1764686052166,21.04281473,131.56,131.53,16.308864]
[1764686052380,8.80994492,131.6,131.54,0.69]
[1764686052674,5.40170466,131.58,131.54,0.69]
[1764686052871,5.40170466,131.57,131.52,24.60208771]
[1764686053251,3.02157316,131.57,131.53,0.69]
[1764686053758,10.6223146,131.57,131.53,8.29277992]
[1764686054176,5.40170466,131.55,131.52,16.308864]
[1764686054347,5.40170466,131.55,131.5,24.11335496]
[1764686054555,5.40170466,131.55,131.51,0.69]
[1764686055076,8.54,131.56,131.51,0.69]
[1764686055449,13.94170466,131.56,131.51,0.69]
[1764686055746,13.00376489,131.55,131.51,8.29386318]
[1764686055962,13.00376489,131.55,131.51,0.69]
[1764686056577,13.00376489,131.55,131.51,8.29392991]
[1764686056875,5.40170466,131.53,131.5,16.508864]
[1764686057169,5.40170466,131.52,131.5,0.2]
[1764686057565,5.40170466,131.51,131.5,0.2]
[1764686057878,13.00568914,131.51,131.5,0.2]
[1764686058060,13.62568914,131.51,131.5,0.2]
[1764686058575,22.43563406,131.51,131.5,0.2]
[1764686058872,7.60398448,131.51,131.5,0.2]
[1764686059056,21.54568914,131.51,131.5,0.2]
[1764686059259,13.00568914,131.51,131.5,0.2]
[1764686059678,21.54568914,131.51,131.5,0.2]
[1764686059873,13.94170466,131.51,131.5,0.2]
[1764686060181,30.97563406,131.51,131.5,0.2]
[1764686060381,25.5739294,131.51,131.5,0.2]
[1764686060576,30.97563406,131.51,131.5,0.2]
[1764686061960,16.14398448,131.51,131.5,0.2]
[1764686062696,7.60292983,131.53,131.5,0.89]
[1764686062855,8.54,131.52,131.5,0.89]
[1764686063059,8.54,131.52,131.51,0.69]
[1764686063269,7.60231651,131.54,131.51,0.69]
[1764686063490,7.60231651,131.54,131.51,6.09170466]
[1764686063789,7.60231651,131.54,131.51,0.69]
[1764686063974,7.60231651,131.54,131.52,0.69]
[1764686064169,7.5999392,131.58,131.52,13.69484951]
[1764686064362,8.54,131.57,131.53,9.02380752]
[1764686064587,8.54,131.57,131.54,9.71380752]
[1764686064786,7.59931274,131.6,131.55,9.02380752]
[1764686064991,36.23733798,131.62,131.57,9.02380752]
[1764686065168,7.598154,131.62,131.58,9.71380752]
[1764686065364,18.9920406,131.64,131.6,9.02380752]
[1764686065365,7.59694049,131.64,131.6,9.02380752]
[1764686065580,8.54,131.65,131.59,25.538864]
[1764686065780,17.56380752,131.65,131.6,9.02380752]
[1764686065967,17.56380752,131.65,131.61,8.28820682]
[1764686066481,8.54,131.65,131.62,9.02380752]
[1764686066783,8.54,131.67,131.62,9.71380752]
[1764686066983,8.54,131.67,131.63,0.69]
[1764686067488,8.54,131.67,131.63,9.71380752]
[1764686067670,16.13481936,131.67,131.63,8.28693164]
[1764686067990,25.15862688,131.67,131.63,7.59693164]
[1764686068168,25.15862688,131.67,131.64,0.69]
[1764686068495,25.15862688,131.67,131.63,8.28693164]
[1764686069171,25.15862688,131.67,131.63,0.69]
[1764686069381,16.13481936,131.67,131.63,0.69]
[1764686069689,25.15862688,131.67,131.63,0.69]
[1764686070080,16.13481936,131.67,131.63,0.69]
[1764686070281,16.61759119,131.69,131.64,9.02380752]
[1764686070480,8.54,131.67,131.64,9.02380752]
[1764686070777,8.54,131.67,131.65,0.69]
[1764686071288,25.15869186,131.67,131.62,9.71380752]
[1764686071590,9.02380752,131.65,131.6,25.33267152]
[1764686071764,9.02380752,131.65,131.61,0.69]
[1764686071966,9.02380752,131.66,131.61,9.71380752]
[1764686072467,9.02380752,131.63,131.59,8.2891928]
[1764686072791,8.54,131.63,131.6,0.69]
[1764686072976,8.54,131.63,131.6,9.71380752]
[1764686073364,8.54,131.63,131.61,0.69]
[1764686074591,8.54,131.63,131.59,33.62201974]
[1764686074885,8.54,131.63,131.6,0.69]
[1764686075088,25.16098992,131.63,131.58,9.02380752]
[1764686075295,9.02380752,131.61,131.56,0.69]
[1764686075473,9.02380752,131.61,131.56,9.71380752]
[1764686075786,9.02380752,131.61,131.57,0.69]
[1764686075992,8.54,131.62,131.59,9.02380752]
[1764686076163,8.54,131.62,131.59,0.69]
[1764686077087,8.54,131.62,131.59,9.71380752]
[1764686077278,17.56380752,131.65,131.6,9.02380752]
[1764686077477,8.54,131.65,131.61,7.59820682]
[1764686077681,16.13606076,131.65,131.62,0.69]
[1764686077861,8.54,131.65,131.62,0.69]
[1764686078066,7.59424328,131.68,131.64,9.02380752]
[1764686078392,16.13424328,131.68,131.64,9.02380752]
[1764686078779,16.13424328,131.68,131.64,9.71380752]
[1764686078987,16.13424328,131.68,131.65,0.69]
[1764686079175,0.1,131.76,131.67,25.33267152]
[1764686079374,0.1,131.76,131.71,26.57353275]
[1764686079579,0.1,131.76,131.75,9.02380752]
[1764686079893,0.1,131.76,131.74,9.02380752]
[1764686080301,0.1,131.76,131.75,9.71380752]
[1764686080496,0.1,131.76,131.75,0.69]
[1764686080790,18.35380752,131.76,131.71,7.59243793]
[1764686080974,9.02380752,131.73,131.69,7.59329197]
[1764686081182,9.02380752,131.74,131.69,7.59329197]
[1764686081388,9.33,131.76,131.69,16.61709949]
[1764686081573,16.61394034,131.75,131.7,0.69]
[1764686081772,16.61394034,131.75,131.7,9.71380752]
[1764686081997,16.61394034,131.75,131.71,0.68]
[1764686082196,7.59013282,131.75,131.71,0.68]
[1764686082374,7.59013282,131.75,131.71,9.70380752]
[1764686082574,16.22969904,131.76,131.72,9.02380752]
[1764686082773,7.68969904,131.76,131.72,9.70380752]
[1764686082988,7.68969904,131.76,131.73,0.68]
[1764686083183,0.1,131.76,131.73,9.70380752]
[1764686083402,0.1,131.76,131.74,16.61410077]
[1764686083693,0.1,131.76,131.74,17.29410077]
[1764686083885,0.1,131.76,131.75,9.70380752]
[1764686084574,0.1,131.76,131.75,26.01267152]
[1764686084985,0.1,131.76,131.75,34.55267152]
[1764686085492,0.1,131.76,131.75,42.14280434]
[1764686086279,0.1,131.76,131.75,33.60280434]
[1764686086696,7.68362704,131.87,131.79,25.11880892]
[1764686086898,7.68362704,131.87,131.76,8.80994492]
[1764686086899,0.1,131.87,131.85,9.02380752]
[1764686087197,0.1,131.87,131.85,34.14261644]
[1764686087499,0.1,131.87,131.86,9.70380752]
[1764686087812,0.1,131.87,131.86,18.24380752]
[1764686088292,0.1,131.87,131.85,16.308864]
[1764686088495,0.1,131.87,131.85,26.01267152]
[1764686088679,0.1,131.87,131.85,24.57292083]
[1764686088997,0.1,131.87,131.85,23.89292083]
[1764686089198,0.1,131.87,131.85,24.57292083]
[1764686089680,0.1,131.87,131.85,7.58405683]
[1764686089878,0.1,131.87,131.85,8.26405683]
[1764686090080,0.1,131.87,131.83,26.01267152]
[1764686090399,0.1,131.87,131.84,0.68]
[1764686090696,0.71,131.96,131.86,25.33267152]
[1764686090893,18.25380752,131.98,131.92,9.02380752]
[1764686091121,8.52,131.98,131.94,9.02380752]
[1764686091279,8.52,131.98,131.92,25.33267152]
[1764686091478,8.52,131.98,131.92,26.01267152]
[1764686091988,8.52,131.98,131.93,9.02380752]
[1764686092191,8.52,131.98,131.93,9.70380752]
[1764686092578,25.83076828,131.98,131.93,0.68]